bitfinex-derivatives/quotes_SOLF0:USTF0_20241217
["timestamp","ask_amount","ask_price","bid_price","bid_amount"]
[1734410040802,7.39657315,213.95,213.9,9.73387315]
[1734410043002,9.73337315,213.95,213.88,11.99407315]
[1734410043600,26.0,213.97,213.73,5.72125237]
[1734410043805,3.237,214.03,213.68,7.39657315]
[1734410043806,7.39657315,213.76,213.68,7.39657315]
[1734410044002,7.39657315,213.76,213.69,5.68827843]
[1734410044311,2.26,213.81,213.66,7.39657315]
[1734410044312,7.39657315,213.74,213.66,7.39657315]
[1734410044905,7.39657315,213.74,213.67,2.26]
[1734410045101,7.39657315,213.74,213.67,7.90395272]
[1734410045804,7.39657315,213.74,213.67,5.64395272]
[1734410046005,2.3388,213.77,213.67,7.90395272]
[1734410047411,2.3388,213.77,213.67,10.24385272]
[1734410047611,2.3388,213.77,213.67,7.90395272]
[1734410048409,11.56616935,213.78,213.67,7.90395272]
[1734410049409,13.90486935,213.78,213.7,2.3395]
[1734410049819,2.3387,213.78,213.7,2.3395]
[1734410050516,11.56616935,213.8,213.7,2.3395]
[1734410050721,2.3388,213.77,213.7,2.3395]
[1734410050920,11.56616935,213.8,213.67,7.90395272]
[1734410051120,11.56616935,213.77,213.68,2.3397]
[1734410051316,2.3391,213.75,213.68,2.3397]
[1734410051622,11.56616935,213.77,213.67,7.90395272]
[1734410051922,2.3389,213.76,213.69,2.3397]
[1734410052117,2.3389,213.76,213.67,7.90395272]
[1734410052321,11.56616935,213.77,213.68,2.26]
[1734410052721,11.56616935,213.77,213.67,2.26]
[1734410053518,2.3393,213.73,213.67,2.26]
[1734410053718,2.3393,213.73,213.66,2.26]
[1734410053923,2.3393,213.73,213.66,4.6]
[1734410056217,2.3396,213.7,213.65,2.26]
[1734410056919,11.56616935,213.68,213.52,1.6314]
[1734410057113,11.56616935,213.68,213.54,11.56616935]
[1734410057316,11.56616935,213.68,213.55,2.26]
[1734410057522,11.56616935,213.68,213.55,7.85861429]
[1734410059420,2.34,213.66,213.55,7.85861429]
[1734410060524,2.34,213.66,213.58,2.3409]
[1734410062418,13.90606935,213.68,213.59,2.3408]
[1734410063122,11.56616935,213.68,213.59,2.3408]
[1734410063322,2.3399,213.67,213.59,2.3408]
[1734410065724,2.34,213.66,213.59,2.3408]
[1734410067224,11.56616935,213.65,213.56,2.28]
[1734410067421,11.56616935,213.68,213.57,11.56616935]
[1734410067622,2.3396,213.7,213.63,2.3403]
[1734410067821,11.56616935,213.71,213.63,2.28]
[1734410068030,7.40554266,213.7,213.63,9.68554266]
[1734410069023,9.74514266,213.7,213.64,2.3402]
[1734410069723,7.40554266,213.68,213.64,2.3402]
[1734410069930,2.3396,213.7,213.64,2.3402]
[1734410071929,2.3397,213.69,213.64,2.3402]
[1734410072332,11.57291802,213.68,213.6,2.28]
[1734410072526,11.57291802,213.68,213.59,2.28]
[1734410073430,2.3399,213.67,213.61,2.3404]
[1734410074428,11.57291802,213.68,213.61,2.3404]
[1734410076533,13.91271802,213.68,213.61,2.3404]
[1734410077030,13.91271802,213.68,213.59,2.28]
[1734410077031,13.85291802,213.71,213.62,2.3403]
[1734410077227,2.3396,213.7,213.62,2.3403]
[1734410077825,2.3396,213.7,213.63,2.3403]
[1734410078929,2.3398,213.68,213.62,2.3404]
[1734410079138,13.91271802,213.68,213.62,2.3404]
[1734410080729,2.3396,213.7,213.59,2.28]
[1734410081437,2.3396,213.7,213.63,2.3403]
[1734410082139,2.3396,213.7,213.64,2.3402]
[1734410083629,2.3394,213.72,213.67,2.3398]
[1734410083836,11.57291802,213.76,213.64,13.85291802]
[1734410084134,11.57291802,213.76,213.65,3.0563]
[1734410085537,2.3392,213.74,213.68,2.3397]
[1734410086041,2.3392,213.73,213.68,2.3397]
[1734410086640,2.3392,213.73,213.65,3.0563]
[1734410086641,2.3392,213.73,213.67,2.3399]
[1734410086836,2.3394,213.72,213.65,3.0563]
[1734410087136,11.57291802,213.73,213.6,1.5852]
[1734410087335,11.57291802,213.7,213.6,3.8652]
[1734410088042,2.3399,213.67,213.61,2.3404]
[1734410090042,2.3399,213.67,213.61,9.74744198]
[1734410091349,9.74684198,213.68,213.61,9.74744198]
[1734410093251,9.74684198,213.68,213.62,2.26]
[1734410096947,9.74684198,213.68,213.62,4.6004]
[1734410097347,4.6193,213.73,213.63,7.40704198]
[1734410097550,7.40704198,213.71,213.66,2.34]
[1734410098751,7.40704198,213.71,213.63,7.40704198]
[1734410100455,7.40704198,213.71,213.65,2.34]
[1734410101354,7.40704198,213.69,213.64,2.3402]
[1734410102957,7.40704198,213.69,213.62,2.26]
[1734410103151,7.40704198,213.65,213.56,0.16688]
[1734410103365,7.40704198,213.65,213.58,7.40704198]
[1734410104158,2.26,213.7,213.6,7.40704198]
[1734410104355,7.40704198,213.69,213.62,7.40704198]
[1734410104560,7.40704198,213.69,213.64,2.3402]
[1734410105758,7.40704198,213.67,213.63,4.6003]
[1734410105958,9.74704198,213.67,213.63,2.26]
[1734410107757,7.40704198,213.65,213.61,4.6005]
[1734410107949,7.40704198,213.65,213.61,2.26]
[1734410109462,9.74714198,213.65,213.61,2.26]
[1734410111163,7.40704198,213.65,213.61,2.26]
[1734410111459,5.70141004,213.75,213.62,7.40704198]
[1734410111659,7.40704198,213.69,213.62,7.40704198]
[1734410111864,2.26,213.73,213.63,2.3402]
[1734410111865,2.3397,213.7,213.63,2.3402]
[1734410112065,7.40704198,213.69,213.63,2.3402]
[1734410112562,9.74674198,213.69,213.64,2.3402]
[1734410114063,2.3398,213.68,213.63,2.3403]
[1734410114363,7.40704198,213.67,213.61,2.26]
[1734410114863,2.3401,213.65,213.61,4.6005]
[1734410115063,2.3401,213.65,213.61,2.26]
[1734410115264,2.3401,213.65,213.59,7.40704198]
[1734410115466,9.74714198,213.65,213.6,2.26]
[1734410116261,2.3399,213.68,213.61,2.3405]
[1734410116462,7.40704198,213.66,213.61,2.3405]
[1734410117167,7.40704198,213.66,213.61,9.74754198]
[1734410118063,2.3399,213.67,213.61,9.74754198]
[1734410121668,7.40704198,213.66,213.6,2.26]
[1734410122565,2.3401,213.65,213.6,2.26]
[1734410123372,2.3404,213.63,213.6,2.26]
[1734410124071,2.3404,213.63,213.58,7.40704198]
[1734410124269,2.3404,213.63,213.59,2.26]
[1734410124970,7.40704198,213.62,213.54,0.18207]
[1734410125166,7.40704198,213.56,213.54,0.18207]
[1734410125569,2.3412,213.55,213.54,0.18207]
[1734410126174,7.40704198,213.56,213.41,1.5158]
[1734410126374,7.40704198,213.53,213.47,7.40704198]
[1734410126772,7.40704198,213.55,213.48,2.26]
[1734410127268,7.40704198,213.55,213.48,4.6019]
[1734410129268,7.40704198,213.57,213.49,7.40704198]
[1734410129473,7.40704198,213.58,213.51,7.40704198]
[1734410130576,7.40704198,213.58,213.52,2.3415]
[1734410130874,7.40704198,213.58,213.53,9.66704198]
[1734410131072,2.3407,213.6,213.53,9.66704198]
[1734410131073,7.40704198,213.6,213.53,9.66704198]
[1734410132572,7.40704198,213.6,213.54,2.3412]
[1734410133372,7.40704198,213.58,213.51,9.74864198]
[1734410133582,7.40704198,213.58,213.52,2.26]
[1734410135279,2.341,213.57,213.52,2.26]
[1734410136879,7.40704198,213.58,213.52,2.26]
[1734410136880,2.3412,213.56,213.52,2.26]
[1734410137081,9.74824198,213.56,213.52,2.26]
[1734410137280,7.40704198,213.56,213.52,2.26]
[1734410137882,2.3413,213.54,213.49,1.5095]
[1734410138177,7.40704198,213.5,213.46,1.6103]
[1734410138383,7.40704198,213.5,213.42,2.26]
[1734410138585,7.40704198,213.52,213.45,9.05914198]
[1734410139280,7.40704198,213.52,213.44,7.40704198]
[1734410139584,5.48956623,213.63,213.5,7.40704198]
[1734410139784,7.40704198,213.56,213.5,7.40704198]
[1734410140782,2.26,213.61,213.52,7.40704198]
[1734410140976,7.40704198,213.58,213.52,7.40704198]
[1734410141174,7.40704198,213.58,213.53,2.3414]
[1734410141384,2.3409,213.59,213.53,2.3414]
[1734410141578,2.26,213.61,213.53,2.3414]
[1734410141579,7.40704198,213.58,213.53,2.3414]
[1734410142185,7.40704198,213.56,213.5,7.40704198]
[1734410142684,2.3412,213.55,213.5,9.74874198]
[1734410142885,2.3412,213.55,213.5,2.3417]
[1734410143887,9.74814198,213.56,213.5,2.3417]
[1734410145485,2.3412,213.55,213.5,2.3417]
[1734410146878,2.3412,213.55,213.49,4.6018]
[1734410147276,9.74824198,213.55,213.49,4.6018]
[1734410148088,9.74824198,213.55,213.49,2.3418]
[1734410148383,7.40704198,213.53,213.48,9.66704198]
[1734410150586,2.3416,213.52,213.45,13.65254198]
[1734410151383,7.40704198,213.51,213.45,13.65254198]
[1734410151786,9.74874198,213.51,213.45,13.65254198]
[1734410152288,7.40704198,213.47,213.22,56.54133224]
[1734410152488,14.06,213.59,213.42,7.40704198]
[1734410152489,2.26,213.49,213.42,7.40704198]
[1734410152683,7.40704198,213.49,213.42,7.40704198]
[1734410153491,7.40704198,213.49,213.43,2.3425]
[1734410153689,7.40704198,213.49,213.42,7.40704198]
[1734410153984,7.40704198,213.51,213.44,7.40704198]
[1734410154890,2.342,213.49,213.41,2.3427]
[1734410155092,7.40704198,213.51,213.43,7.40704198]
[1734410155293,7.40704198,213.49,213.43,7.40704198]
[1734410155792,2.26,213.57,213.47,7.40704198]
[1734410155988,7.40704198,213.54,213.47,7.40704198]
[1734410156195,5.48956623,213.63,213.5,2.3418]
[1734410156196,2.3411,213.56,213.5,2.3418]
[1734410156389,7.40704198,213.55,213.5,2.3418]
[1734410156590,7.40704198,213.53,213.47,7.40704198]
[1734410157495,7.40704198,213.53,213.45,2.26]
[1734410157696,7.40704198,213.53,213.46,7.40704198]
[1734410157895,7.40704198,213.51,213.45,2.26]
[1734410158096,7.40704198,213.53,213.46,7.40704198]
[1734410158704,7.40704198,213.53,213.48,7.40704198]
[1734410160200,7.40704198,213.53,213.47,2.3421]
[1734410160600,7.40704198,213.53,213.41,2.26]
[1734410160894,7.40704198,213.53,213.46,7.40704198]
[1734410161496,2.3415,213.52,213.46,7.40704198]
[1734410161797,2.26,213.53,213.24,51.85173224]
[1734410161992,2.26,213.53,213.35,7.40704198]
[1734410161993,7.40704198,213.43,213.35,7.40704198]
[1734410162501,9.74964198,213.43,213.35,7.40704198]
[1734410162695,9.74964198,213.43,213.35,9.04934198]
[1734410162901,9.74964198,213.43,213.35,16.2862845]
[1734410163303,2.3428,213.41,213.35,3.2348]
[1734410163504,2.26,213.47,213.35,3.2348]
[1734410163695,7.40704198,213.43,213.36,7.40704198]
[1734410163906,9.74964198,213.43,213.36,7.40704198]
[1734410164200,7.40704198,213.47,213.4,7.40704198]
[1734410164400,7.40704198,213.47,213.41,2.3427]
[1734410164596,9.74914198,213.48,213.42,7.40704198]
[1734410164801,7.40704198,213.46,213.39,2.26]
[1734410164996,9.74914198,213.48,213.4,7.40704198]
[1734410165205,9.74914198,213.48,213.42,7.40704198]
[1734410166503,2.3419,213.49,213.43,2.3425]
[1734410166806,7.40704198,213.49,213.43,2.3425]
[1734410167402,2.342,213.48,213.42,7.40704198]
[1734410167605,2.342,213.48,213.42,9.74964198]
[1734410169402,7.40704198,213.47,213.42,9.74964198]
[1734410170505,2.26,213.52,213.42,7.40704198]
[1734410170699,5.75132353,213.55,213.44,7.40704198]
[1734410170901,7.40704198,213.5,213.45,5.4671]
[1734410172308,7.40704198,213.51,213.45,5.4671]
[1734410172509,7.40704198,213.51,213.46,2.3422]
[1734410174212,9.74874198,213.51,213.46,2.3422]
[1734410177713,2.3419,213.49,213.45,5.4671]
[1734410177907,7.40704198,213.49,213.45,5.4671]
[1734410178419,7.40704198,213.49,213.45,3.2071]
[1734410178610,9.74904198,213.49,213.45,3.2071]
[1734410179313,7.40704198,213.46,213.21,51.85173224]
[1734410179621,7.40704198,213.38,213.31,7.40704198]
[1734410179919,7.40704198,213.38,213.32,3.1507]
[1734410180111,7.40704198,213.4,213.33,7.40704198]
[1734410180512,7.40704198,213.4,213.33,9.75064198]
[1734410180710,7.40704198,213.4,213.33,2.3436]
[1734410181114,7.40704198,213.4,213.32,10.55774198]
[1734410181316,9.75014198,213.38,213.32,12.90144198]
[1734410181809,2.3431,213.38,213.32,12.90144198]
[1734410182206,9.75014198,213.38,213.32,12.90144198]
[1734410183215,9.75014198,213.38,213.32,5.4944]
[1734410183416,9.75014198,213.38,213.32,12.90144198]
[1734410186820,2.3429,213.4,213.34,9.75054198]
[1734410187021,7.40704198,213.44,213.37,7.40704198]
[1734410187321,7.40704198,213.44,213.38,2.26]
[1734410188223,9.74944198,213.44,213.39,2.3429]
[1734410189718,2.3424,213.44,213.39,2.3429]
[1734410189926,2.3423,213.46,213.4,5.5482]
[1734410190223,9.74934198,213.46,213.4,5.5482]
[1734410190424,7.40704198,213.46,213.4,5.5482]
[1734410191424,2.3423,213.45,213.4,5.5482]
[1734410192520,2.3424,213.44,213.4,5.5482]
[1734410192822,2.26,213.5,213.41,7.40704198]
[1734410193019,2.3421,213.47,213.41,7.40704198]
[1734410193220,7.40704198,213.48,213.41,7.40704198]
[1734410193425,7.40704198,213.48,213.42,2.3426]
[1734410194517,2.3422,213.46,213.42,2.3426]
[1734410194925,7.40704198,213.5,213.44,2.3423]
[1734410195119,9.74884198,213.5,213.43,9.66704198]
[1734410196321,9.74884198,213.5,213.44,2.3424]
[1734410196527,2.3419,213.49,213.44,2.3424]
[1734410198030,2.3419,213.49,213.43,9.66704198]
[1734410198232,2.3419,213.49,213.43,12.00954198]
[1734410199032,8.01132353,213.55,213.43,9.66704198]
[1734410199231,7.40704198,213.5,213.44,2.3424]
[1734410199432,7.40704198,213.46,213.38,2.26]
[1734410199629,8.01132353,213.55,213.37,7.40704198]
[1734410199630,7.40704198,213.44,213.37,7.40704198]
[1734410199826,2.3426,213.43,213.38,2.26]
[1734410201636,2.3426,213.43,213.38,4.603]
[1734410203131,2.3428,213.41,213.38,2.26]
[1734410203336,2.3428,213.41,213.36,4.6033]
[1734410204341,2.343,213.39,213.35,7.40704198]
[1734410204538,2.343,213.39,213.35,9.66704198]
[1734410205033,2.343,213.39,213.35,2.26]
[1734410205632,2.3432,213.37,213.35,2.26]
[1734410208131,2.343,213.39,213.35,2.26]
[1734410209832,2.3431,213.38,213.35,2.26]
[1734410210231,2.3433,213.37,213.35,2.26]
[1734410210636,2.3433,213.37,213.34,7.40704198]
[1734410212634,2.343,213.39,213.34,7.40704198]
[1734410213234,2.26,213.43,213.26,0.22816]
[1734410213440,2.3436,213.34,213.3,12.9765815]
[1734410213645,2.26,213.41,213.3,12.9765815]
[1734410213841,7.40704198,213.38,213.3,15.2365815]
[1734410214244,7.40704198,213.38,213.32,7.40704198]
[1734410214539,2.3433,213.36,213.32,7.40704198]
[1734410215146,7.40704198,213.38,213.34,7.40704198]
[1734410215147,2.3432,213.38,213.34,7.40704198]
[1734410215347,7.40704198,213.4,213.3,5.56953952]
[1734410215548,7.40704198,213.4,213.33,7.40704198]
[1734410217548,2.3432,213.37,213.33,7.40704198]
[1734410218056,2.3431,213.38,213.33,9.75064198]
[1734410218251,2.3431,213.38,213.35,7.40704198]
[1734410219459,2.26,213.44,213.35,7.40704198]
[1734410219656,2.3429,213.4,213.35,9.75044198]
[1734410220253,2.3426,213.43,213.36,2.3433]
[1734410220450,7.40704198,213.43,213.36,2.3433]
[1734410221058,2.3429,213.4,213.35,9.75044198]
[1734410221360,5.75132353,213.55,213.38,7.40704198]
[1734410221662,7.40704198,213.48,213.4,7.40704198]
[1734410221857,7.40704198,213.48,213.41,2.26]
[1734410222567,2.3421,213.47,213.42,2.3426]
[1734410223363,7.40704198,213.48,213.41,4.6027]
[1734410223364,2.3422,213.46,213.41,4.6027]
[1734410223962,2.3422,213.46,213.41,2.26]
[1734410224556,7.40704198,213.46,213.35,4.7482]
[1734410224762,7.40704198,213.46,213.38,7.40704198]
[1734410225269,7.40704198,213.44,213.35,4.7482]
[1734410225557,7.40704198,213.42,213.36,2.26]
[1734410225866,2.3435,213.35,213.33,2.26]
[1734410226162,2.3435,213.35,213.32,2.26]
[1734410227866,2.3433,213.36,213.32,2.26]
[1734410228467,2.3433,213.36,213.32,9.66704198]
[1734410229159,2.3433,213.36,213.34,7.40704198]
[1734410230362,7.40704198,213.4,213.34,7.40704198]
[1734410230568,2.3432,213.38,213.34,7.40704198]
[1734410232471,2.3429,213.4,213.34,7.40704198]
[1734410232868,2.3429,213.4,213.36,7.40704198]
[1734410233265,2.3427,213.42,213.36,7.40704198]
[1734410233461,7.40704198,213.46,213.4,7.40704198]
[1734410233869,2.3425,213.44,213.4,7.40704198]
[1734410234366,7.40704198,213.46,213.38,2.26]
[1734410234574,2.3425,213.43,213.38,9.66704198]
[1734410234773,2.3425,213.43,213.38,2.26]
[1734410234968,2.3425,213.43,213.38,9.66704198]
[1734410235270,2.3425,213.43,213.38,12.01014198]
[1734410236673,2.3425,213.43,213.38,4.6031]
[1734410236969,2.3425,213.43,213.38,12.01014198]
[1734410237472,2.3425,213.43,213.38,4.6031]
[1734410237672,2.3425,213.43,213.38,12.01014198]
[1734410239776,7.40704198,213.46,213.4,7.40704198]
[1734410240078,7.40704198,213.47,213.4,9.74984198]
[1734410241171,7.40704198,213.5,213.43,2.3424]
[1734410241370,7.40704198,213.5,213.43,4.6024]
[1734410242272,2.3421,213.47,213.43,2.26]
[1734410243569,7.40704198,213.46,213.42,2.26]
[1734410243766,7.40704198,213.44,213.31,5.49051855]
[1734410243969,2.3431,213.38,213.36,7.40704198]
[1734410246681,2.26,213.47,213.35,2.26]
[1734410246682,7.40704198,213.4,213.35,2.26]
[1734410248475,2.3432,213.37,213.32,3.1935]
[1734410248671,2.3432,213.37,213.33,7.40704198]
[1734410251281,2.3432,213.37,213.32,5.4535]
[1734410251477,2.3432,213.37,213.33,7.40704198]
[1734410252779,2.343,213.39,213.35,7.40704198]
[1734410252983,7.40704198,213.45,213.37,7.40704198]
[1734410253176,7.40704198,213.45,213.37,9.66704198]
[1734410253379,2.3426,213.43,213.37,9.66704198]
[1734410253576,2.3426,213.43,213.39,7.40704198]
[1734410254176,7.40704198,213.45,213.39,7.40704198]
[1734410254375,2.3427,213.42,213.39,7.40704198]
[1734410254577,7.40704198,213.45,213.37,12.01024198]
[1734410254782,7.40704198,213.45,213.37,9.66704198]
[1734410255180,2.3428,213.41,213.37,9.66704198]
[1734410255978,7.40704198,213.45,213.37,12.01024198]
[1734410256184,2.3426,213.42,213.37,12.01024198]
[1734410257686,2.3426,213.42,213.39,7.40704198]
[1734410260396,2.3428,213.41,213.39,7.40704198]
[1734410260689,2.3428,213.41,213.37,12.01024198]
[1734410261786,2.3428,213.41,213.38,2.26]
[1734410261985,2.343,213.39,213.38,2.26]
[1734410262391,7.40704198,213.45,213.38,2.26]
[1734410263387,2.3428,213.41,213.38,2.26]
[1734410263889,2.3428,213.41,213.36,12.01034198]
[1734410264788,2.3429,213.4,213.36,12.01034198]
[1734410265285,7.40704198,213.41,213.36,2.26]
[1734410265490,2.3432,213.37,213.34,7.40704198]
[1734410265692,2.3432,213.37,213.35,2.26]
[1734410265890,2.3433,213.36,213.35,2.26]
[1734410266089,2.3433,213.36,213.32,12.94424198]
[1734410266390,7.40704198,213.41,213.34,7.40704198]
[1734410266690,2.343,213.39,213.34,7.40704198]
[1734410266892,2.343,213.39,213.36,7.40704198]
[1734410269490,2.3431,213.38,213.34,7.40704198]
[1734410270991,2.3432,213.37,213.32,5.4535]
[1734410271184,2.3432,213.37,213.32,12.86054198]
[1734410271993,2.3432,213.37,213.34,7.40704198]
[1734410273182,2.3432,213.37,213.32,5.4535]
[1734410273382,2.3432,213.37,213.34,7.40704198]
[1734410275993,2.3432,213.37,213.31,7.89926252]
[1734410276194,2.3432,213.37,213.33,7.40704198]
[1734410277986,2.3432,213.37,213.32,2.26]
[1734410278189,2.3432,213.37,213.33,7.40704198]
[1734410279194,7.40704198,213.39,213.32,2.26]
[1734410279400,7.40704198,213.37,213.32,2.26]
[1734410279697,7.40704198,213.37,213.3,7.40704198]
[1734410280491,7.40704198,213.37,213.3,9.66704198]
[1734410280695,2.26,213.41,213.3,9.66704198]
[1734410280995,7.40704198,213.39,213.32,7.40704198]
[1734410281292,7.40704198,213.43,213.36,7.40704198]
[1734410281594,7.40704198,213.41,213.35,2.26]
[1734410281795,7.40704198,213.41,213.34,12.01044198]
[1734410281994,7.40704198,213.41,213.34,9.66704198]
[1734410282890,7.40704198,213.35,213.25,3.1599]
[1734410283087,7.40704198,213.35,213.28,7.40704198]
[1734410284197,7.40704198,213.35,213.29,7.40704198]
[1734410284499,2.3436,213.34,213.29,7.40704198]
[1734410285187,7.40704198,213.31,213.25,5.52873194]
[1734410285388,14.06,213.43,213.24,0.23577]
[1734410285596,7.40704198,213.32,213.25,7.40704198]
[1734410286188,2.344,213.3,213.25,7.40704198]
[1734410287289,2.3441,213.29,213.25,2.26]
[1734410287598,7.40704198,213.32,213.25,9.66704198]
[1734410287898,2.344,213.3,213.25,9.66704198]
[1734410288298,2.344,213.3,213.25,2.26]
[1734410288597,2.344,213.3,213.25,9.66704198]
[1734410288795,7.40704198,213.34,213.27,7.40704198]
[1734410288996,2.26,213.38,213.29,7.40704198]
[1734410289301,2.3436,213.33,213.29,7.40704198]
[1734410289491,2.3436,213.33,213.25,2.26]
[1734410289700,2.3436,213.33,213.28,7.40704198]
[1734410290193,7.40704198,213.36,213.28,7.40704198]
[1734410290401,2.26,213.39,213.28,7.40704198]
[1734410290592,7.40704198,213.35,213.28,7.40704198]
[1734410290794,7.40704198,213.31,213.24,0.23577]
[1734410291095,5.74976506,213.38,213.24,0.23577]
[1734410291096,2.3445,213.25,213.24,0.23577]
[1734410296401,9.75154198,213.25,213.24,0.23577]
[1734410298600,2.3445,213.25,213.24,0.23577]
[1734410298799,2.3456,213.16,213.06,2.26]
[1734410299102,7.40704198,213.18,213.1,12.9962338]
[1734410299407,7.40704198,213.18,213.11,5.4566]
[1734410300001,7.40704198,213.18,213.12,7.40704198]
[1734410300202,5.76881626,213.27,213.11,5.4566]
[1734410300203,7.40704198,213.22,213.11,5.4566]
[1734410300405,7.40704198,213.22,213.14,7.40704198]
[1734410300806,2.345,213.21,213.14,7.40704198]
[1734410301104,2.345,213.21,213.15,2.26]
[1734410301807,2.345,213.21,213.15,9.66704198]
[1734410302710,7.40704198,213.22,213.15,9.66704198]
[1734410302905,7.40704198,213.26,213.19,7.40704198]
[1734410303105,7.40704198,213.26,213.2,2.26]
[1734410303310,7.40704198,213.26,213.2,3.8016]
[1734410303504,7.40704198,213.26,213.2,5.4092]
[1734410304101,2.3446,213.24,213.2,3.1492]
[1734410304306,2.3446,213.24,213.2,5.4092]
[1734410304807,2.3453,213.18,213.1,7.93529182]
[1734410305000,14.06,213.37,213.12,7.40704198]
[1734410305001,7.40704198,213.2,213.12,7.40704198]
[1734410305204,7.40704198,213.18,213.13,2.26]
[1734410305602,7.40704198,213.2,213.13,2.26]
[1734410305803,7.40704198,213.23,213.16,7.40704198]
[1734410306313,2.345,213.21,213.16,7.40704198]
[1734410306514,2.345,213.21,213.14,7.40704198]
[1734410307011,9.75204198,213.21,213.14,7.40704198]
[1734410307207,9.75204198,213.21,213.15,2.26]
[1734410307404,2.3449,213.22,213.15,4.6056]
[1734410307611,2.26,213.29,213.17,7.40704198]
[1734410307813,7.40704198,213.23,213.17,7.40704198]
[1734410308014,2.3449,213.21,213.17,7.40704198]
[1734410308514,7.40704198,213.23,213.17,7.40704198]
[1734410309813,14.06,213.37,213.17,7.40704198]
[1734410310008,7.40704198,213.25,213.17,7.40704198]
[1734410310610,2.3447,213.23,213.17,9.75244198]
[1734410310810,7.40704198,213.27,213.19,7.40704198]
[1734410311016,7.40704198,213.27,213.15,2.26]
[1734410311017,7.40704198,213.27,213.21,7.40704198]
[1734410311215,7.40704198,213.27,213.22,2.26]
[1734410311813,2.3444,213.27,213.22,2.26]
[1734410312416,5.74976506,213.38,213.22,2.26]
[1734410312725,7.40704198,213.29,213.22,2.26]
[1734410313315,2.344,213.3,213.25,7.40704198]
[1734410314320,7.40704198,213.31,213.25,7.40704198]
[1734410314321,2.3441,213.29,213.25,7.40704198]
[1734410317019,2.3439,213.31,213.25,7.40704198]
[1734410317322,2.3439,213.31,213.22,2.26]
[1734410317323,2.3439,213.31,213.27,7.40704198]
[1734410317519,2.3435,213.35,213.28,5.4253]
[1734410317724,7.40704198,213.35,213.29,7.40704198]
[1734410317923,7.40704198,213.37,213.29,8.93154198]
[1734410318321,2.3436,213.34,213.29,8.93154198]
[1734410318920,2.3436,213.33,213.29,8.93154198]
[1734410323323,7.40704198,213.38,213.31,7.40704198]
[1734410323532,7.40704198,213.42,213.35,7.40704198]
[1734410323737,7.40704198,213.42,213.36,2.26]
[1734410324029,7.40704198,213.44,213.37,7.40704198]
[1734410324224,58.3225,213.55,213.39,7.40704198]
[1734410324421,58.3225,213.55,213.36,2.26]
[1734410324422,2.3424,213.45,213.41,7.40704198]
[1734410324728,7.40704198,213.47,213.41,9.66704198]
[1734410325325,47.76674687,213.59,213.41,9.66704198]
[1734410325326,47.76674687,213.59,213.45,7.40704198]
[1734410325530,0.73591276,213.58,213.5,7.40704198]
[1734410325731,2.3414,213.54,213.51,2.26]
[1734410326427,2.3412,213.56,213.52,7.40704198]
[1734410326733,7.40704198,213.61,213.54,7.40704198]
[1734410327329,7.40704198,213.59,213.51,2.26]
[1734410327524,7.40704198,213.59,213.53,7.40704198]
[1734410327930,11.58233745,213.63,213.51,2.26]
[1734410328432,2.3409,213.58,213.51,2.26]
[1734410329033,17.27258385,213.63,213.52,2.26]
[1734410329334,11.58233745,213.6,213.52,2.26]
[1734410329634,2.3412,213.55,213.52,2.26]
[1734410331427,11.58233745,213.57,213.47,1.6426]
[1734410331632,11.58233745,213.57,213.48,2.26]
[1734410332232,2.3416,213.52,213.48,2.26]
[1734410333833,11.58233745,213.6,213.48,2.26]
[1734410334632,11.58233745,213.6,213.47,13.22493745]
[1734410334633,11.58233745,213.6,213.49,2.26]
[1734410334830,19.53258385,213.63,213.5,11.58233745]
[1734410335035,17.27258385,213.63,213.5,11.58233745]
[1734410335337,2.3411,213.56,213.5,13.92403745]
[1734410335529,2.3411,213.56,213.5,11.58233745]
[1734410335838,17.27258385,213.63,213.5,11.58233745]
[1734410336035,2.341,213.57,213.51,2.3416]
[1734410337340,17.27258385,213.63,213.5,11.58233745]
[1734410337939,2.3412,213.56,213.5,11.58233745]
[1734410339239,2.3413,213.54,213.51,2.26]
[1734410339436,2.3413,213.54,213.52,2.26]
[1734410339637,17.27258385,213.63,213.47,1.6426]